fUSD/lending_fUSD_20240117
["ID","MTS","AMOUNT","RATE_DAILY","PERIOD"]
[311860151,1705476666851,-906.36,0.00022739,2]
[311860152,1705476666860,-16162.54,0.00022739,2]
[311860153,1705476666870,-12434.26,0.00022739,2]
[311860154,1705476666881,-9482.71,0.00022739,2]
[311860155,1705476666892,-11109.93,0.00022739,2]
[311860156,1705476666902,-3256.16,0.00022739,2]
[311860157,1705476666911,-745.97,0.00022739,2]
[311860158,1705476666921,-1640.28,0.00022739,2]
[311860159,1705476666930,-3399.11,0.00022739,2]
[311860160,1705476666940,-20221.89,0.00022739,2]
[311860161,1705476666949,-454.52,0.00022739,2]
[311860162,1705476666959,-6354.09,0.00022739,2]
[311860163,1705476666968,-2538.4,0.00022739,2]
[311860164,1705476666978,-500.0,0.00022739,2]
[311860165,1705476666987,-500.0,0.00022739,2]
[311860166,1705476666996,-500.0,0.00022739,2]
[311860167,1705476667006,-1837.55,0.00022739,2]
[311860168,1705476667015,-500.0,0.00022739,2]
[311860169,1705476667024,-2659.91,0.00022739,2]
[311860170,1705476667034,-1254.9,0.00022739,2]
[311860171,1705476667042,-768.69,0.00022739,2]
[311860172,1705476667052,-4127.52,0.00022739,2]
[311860173,1705476667061,-1027.34,0.00022739,2]
[311860174,1705476667070,-804.83,0.00022739,2]
[311860175,1705476667079,-500.0,0.00022739,2]
[311860176,1705476667089,-6211.9,0.00022739,2]
[311860177,1705476667099,-1135.57,0.00022739,2]
[311860178,1705476667109,-1394.59,0.00022739,2]
[311860179,1705476667119,-2527.38,0.00022739,2]
[311860180,1705476667132,-11978.73,0.00022739,2]
[311860181,1705476667141,-1232.33,0.00022739,2]
[311860182,1705476667151,-500.0,0.00022739,2]
[311860183,1705476667161,-1194.86,0.00022739,2]
[311860184,1705476667170,-1197.28,0.00022739,2]
[311860185,1705476667180,-794.93,0.00022739,2]
[311860186,1705476667189,-1023.46,0.00022739,2]
[311860187,1705476667199,-1514.74,0.00022739,2]
[311860188,1705476667209,-1714.78,0.00022739,2]
[311860189,1705476667218,-12347.72,0.00022739,2]
[311860190,1705476667228,-689.66,0.00022739,2]
[311860191,1705476667237,-5216.21,0.00022739,2]
[311860192,1705476667246,-1686.52,0.00022739,2]
[311860193,1705476667256,-2845.05,0.00022739,2]
[311860194,1705476667266,-2569.42,0.00022739,2]
[311860195,1705476667275,-873.47,0.00022739,2]
[311860196,1705476667286,-3061.14,0.00022739,2]
[311860197,1705476667295,-21768.2,0.00022739,2]
[311860198,1705476667305,-1882.19,0.00022739,2]
[311860199,1705476667315,-3382.23,0.00022739,2]
[311860200,1705476667324,-544.36,0.00022739,2]
[311860201,1705476667334,-1892.99,0.00022739,2]
[311860202,1705476667344,-1718.95,0.00022739,2]
[311860203,1705476667354,-2729.13,0.00022739,2]
[311860204,1705476667364,-1110.88,0.00022739,2]
[311860205,1705476667374,-1472.6,0.00022739,2]
[311860206,1705476667384,-1521.32,0.00022739,2]
[311860207,1705476667398,-7299.5,0.00022739,2]
[311860208,1705476667407,-6042.66,0.00022739,2]
[311860209,1705476667417,-2221.72,0.00022739,2]
[311860210,1705476667427,-500.0,0.00022739,2]
[311860211,1705476667438,-2832.83,0.00022739,2]
[311860212,1705476667447,-1150.25,0.00022739,2]
[311860213,1705476667456,-1558.01,0.00022739,2]
[311860214,1705476667466,-1098.97,0.00022739,2]
[311860215,1705476667477,-1166.21,0.00022739,2]
[311860216,1705476667488,-500.0,0.00022739,2]
[311860217,1705476667498,-1069.45,0.00022739,2]
[311860218,1705476667507,-2355.39,0.00022739,2]
[311860219,1705476667517,-3591.8,0.00022739,2]
[311860220,1705476667526,-1684.66,0.00022739,2]
[311860221,1705476667536,-2434.16,0.00022739,2]
[311860222,1705476667546,-500.0,0.00022739,2]
[311860223,1705476667555,-2606.94,0.00022739,2]
[311860224,1705476667565,-2406.41,0.00022739,2]
[311860225,1705476667574,-500.0,0.00022739,2]
[311860226,1705476667583,-1852.97,0.00022739,2]
[311860227,1705476667593,-1143.46,0.00022739,2]
[311860228,1705476667603,-3034.52,0.00022739,2]
[311860229,1705476667613,-2106.34,0.00022739,2]
[311860230,1705476667622,-500.0,0.00022739,2]
[311860231,1705476667632,-6039.3,0.00022739,2]
[311860232,1705476667641,-500.0,0.00022739,2]
[311860233,1705476667651,-500.0,0.00022739,2]
[311860234,1705476667661,-2689.31,0.00022739,2]
[311860235,1705476667670,-2935.07,0.00022739,2]
[311860236,1705476667680,-1479.69,0.00022739,2]
[311860237,1705476667690,-1497.87,0.00022739,2]
[311860238,1705476667700,-4181.77,0.00022739,2]
[311860239,1705476667709,-627.99,0.00022739,2]
[311860240,1705476667719,-4882.39,0.00022739,2]
[311860241,1705476667729,-41398.88,0.00022739,2]
[311860242,1705476667738,-2836.0,0.00022739,2]
[311860243,1705476667748,-3534.13,0.00022739,2]
[311860244,1705476667757,-1156.16,0.00022739,2]
[311860245,1705476667767,-1508.99,0.00022739,2]
[311860246,1705476667777,-500.0,0.00022739,2]
[311860247,1705476667786,-1739.73,0.00022739,2]
[311860248,1705476667795,-1188.49,0.00022739,2]
[311860249,1705476667805,-500.0,0.00022739,2]
[311860250,1705476667815,-3412.97,0.00022739,2]
[311860251,1705476667824,-500.0,0.00022739,2]
[311860252,1705476667834,-31583.95,0.00022739,2]
[311860253,1705476667843,-2106.23,0.00022739,2]
[311860254,1705476667853,-500.0,0.00022739,2]
[311860255,1705476667862,-3068.01,0.00022739,2]
[311860256,1705476667872,-2342.46,0.00022739,2]
[311860257,1705476667882,-2931.11,0.00022739,2]
[311860258,1705476667892,-1279.05,0.00022739,2]
[311860259,1705476667902,-1974.83,0.00022739,2]
[311860260,1705476667911,-324.04,0.00022739,2]
[311860261,1705476667921,-500.0,0.00022739,2]
[311860262,1705476667931,-905.62,0.00022739,2]
[311860263,1705476667940,-673.74,0.00022739,2]
[311860264,1705476667950,-924.31,0.00022739,2]
[311860265,1705476667959,-723.73,0.00022739,2]
[311860266,1705476667969,-7135.45,0.00022739,2]
[311860267,1705476667978,-3841.98,0.00022739,2]
[311860268,1705476667988,-1202.06,0.00022739,2]
[311860269,1705476667998,-500.0,0.00022739,2]
[311860270,1705476668008,-1235.21,0.00022739,2]
[311860271,1705476668018,-1240.2,0.00022739,2]
[311860272,1705476668027,-2033.72,0.00022739,2]
[311860273,1705476668037,-2621.03,0.00022739,2]
[311860274,1705476668046,-8444.95,0.00022739,2]
[311860275,1705476668056,-2575.29,0.00022739,2]
[311860276,1705476668065,-5865.12,0.00022739,2]
[311860277,1705476668075,-1735.37,0.00022739,2]
[311860278,1705476668084,-2471.03,0.00022739,2]
[311860279,1705476668094,-1561.45,0.00022739,2]
[311860280,1705476668103,-2736.94,0.00022739,2]
[311860281,1705476668113,-2739.39,0.00022739,2]
[311860282,1705476668122,-2612.65,0.00022739,2]
[311860283,1705476668132,-774.71,0.00022739,2]
[311860284,1705476668141,-500.0,0.00022739,2]
[311860285,1705476668151,-540.68,0.00022739,2]
[311860286,1705476668161,-586.29,0.00022739,2]
[311860287,1705476668171,-3538.98,0.00022739,2]
[311860288,1705476668181,-1291.61,0.00022739,2]
[311860289,1705476668191,-4012.75,0.00022739,2]
[311860290,1705476668200,-536.83,0.00022739,2]
[311860291,1705476668210,-709.89,0.00022739,2]
[311860292,1705476668219,-1954.09,0.00022739,2]
[311860293,1705476668229,-1524.83,0.00022739,2]
[311860294,1705476668238,-1263.43,0.00022739,2]
[311860295,1705476668248,-731.06,0.00022739,2]
[311860296,1705476668264,-3607.07,0.00022739,2]
[311860297,1705476668275,-500.0,0.00022739,2]
[311860298,1705476668285,-839.52,0.00022739,2]
[311860299,1705476668295,-1904.27,0.00022739,2]
[311860300,1705476668305,-500.0,0.00022739,2]
[311860301,1705476668314,-2144.67,0.00022739,2]
[311860302,1705476668324,-1957.1,0.00022739,2]
[311860303,1705476668334,-898.05,0.00022739,2]
[311860304,1705476668343,-10943.33,0.00022739,2]
[311860305,1705476668355,-1970.8,0.00022739,2]
[311860306,1705476668364,-500.0,0.00022739,2]
[311860307,1705476668376,-200.0,0.00022766,2]
[311860308,1705476668386,-2408.8698179,0.00022767,2]
[311860309,1705476668398,-150.0,0.00022774,2]
[311860310,1705476668408,-190.39469178,0.00022798,2]
[311860311,1705476668421,-697.51118737,0.00022799,2]
[311860312,1705476668642,-300.0,0.00022799,2]
[311860313,1705476668668,-157.15518639,0.00022799,2]
[311860314,1705476668678,-83642.2155,0.000228,2]
[311860315,1705476668688,-2063.58340954,0.000228,2]
[311860316,1705476668698,-167.61617295,0.000228,2]
[311860317,1705476668707,-300.0,0.00022807,2]
[311860318,1705476668720,-500.0,0.00022808,2]
[311860319,1705476668730,-200.0,0.00022814,2]
[311860320,1705476668740,-150.0,0.00022825,2]
[311860321,1705476668750,-653.0,0.00022833,2]
[311860322,1705476668761,-150.0,0.00022881,2]
[311860323,1705476668771,-250.0,0.00022887,2]
[311860324,1705476668781,-1557.40117,0.00022898,3]
[311860325,1705476668791,-1557.40117,0.00022898,3]
[311860326,1705476668801,-1557.40117,0.00022898,3]
[311860327,1705476668811,-1557.40117,0.00022898,3]
[311860328,1705476668821,-1557.40117,0.00022898,3]
[311860329,1705476668831,-1557.40117,0.00022898,3]
[311860330,1705476668841,-1557.40117,0.00022898,3]
[311860331,1705476668851,-1557.40117,0.00022898,3]
[311860332,1705476668861,-1557.40117,0.00022898,3]
[311860333,1705476668871,-1557.40117,0.00022898,3]
[311860334,1705476668884,-315.45920087,0.00022899,2]
[311860335,1705476668894,-1348.74067089,0.00022899,2]
[311860336,1705476668904,-500.0,0.00022899,2]
[311860337,1705476668914,-500.0,0.00022899,2]
[311860338,1705476668924,-1002.05,0.00022899,2]
[311860339,1705476668934,-1002.05,0.00022899,2]
[311860340,1705476668944,-318146.39646738,0.000229,2]
[311860341,1705476668953,-186.18880338,0.000229,2]
[311860342,1705476668964,-1623.43036903,0.000229,2]
[311860343,1705476668974,-1623.430369,0.000229,2]
[311860344,1705476668984,-1623.430369,0.000229,2]
[311860345,1705476668993,-1623.430369,0.000229,2]
[311860346,1705476669003,-1623.430369,0.000229,2]
[311860347,1705476669013,-1623.430369,0.000229,2]
[311860348,1705476669023,-1623.430369,0.000229,2]
[311860349,1705476669033,-2520.389798,0.000229,2]
[311860350,1705476669044,-1623.430369,0.000229,2]
[311860351,1705476669054,-1623.430369,0.000229,2]
[311860352,1705476669064,-1623.430369,0.000229,2]
[311860353,1705476669074,-1623.430369,0.000229,2]
[311860354,1705476669084,-1623.430369,0.000229,2]
[311860355,1705476669093,-502.223709,0.000229,2]
[311860356,1705476669103,-1623.430369,0.000229,2]
[311860357,1705476669113,-1623.430369,0.000229,2]
[311860358,1705476669122,-1623.430369,0.000229,2]
[311860359,1705476669134,-1623.430369,0.000229,2]
[311860360,1705476669145,-1623.430369,0.000229,2]
[311860361,1705476669155,-1623.430369,0.000229,2]
[311860362,1705476669166,-1623.430369,0.000229,2]
[311860363,1705476669177,-1623.430369,0.000229,2]
[311860364,1705476669188,-485.17989652,0.00022912,2]
[311860365,1705476669198,-210.4498168,0.00022913,2]
[311860366,1705476669209,-699.25147307,0.00022913,2]
[311860367,1705476669219,-236.71,0.00022923,2]
[311860368,1705476669230,-2408.8698179,0.00022977,2]
[311860369,1705476669240,-426.0,0.00022977,2]
[311860370,1705476669249,-782.499,0.00022977,2]
[311860371,1705476669259,-10807.0,0.00022985,2]
[311860372,1705476669269,-767.90994685,0.00022985,2]
[311860373,1705476669278,-563.05698065,0.00022985,2]
[311860374,1705476669288,-155.49151411,0.00022985,2]
[311860375,1705476669298,-155.82054156,0.00022985,2]
[311860376,1705476669308,-199.33340731,0.00022985,2]
[311860377,1705476669318,-162.63392398,0.00022985,2]
[311860378,1705476669328,-243.64840877,0.00022985,2]
[311860379,1705476669338,-233.99962538,0.00022985,2]
[311860380,1705476669348,-178.58984727,0.00022985,2]
[311860381,1705476669358,-965.55490014,0.00022985,2]
[311860382,1705476669368,-329.48926724,0.00022985,2]
[311860383,1705476669384,-1002.05,0.00022985,2]
[311860384,1705476669397,-1002.05,0.00022985,2]
[311860385,1705476669406,-2720.59981463,0.00022986,2]
[311860386,1705476669415,-2562.46,0.00022986,2]
[311860387,1705476669424,-531.55,0.00022986,2]
[311860388,1705476669434,-1329.99,0.00022986,2]
[311860389,1705476669443,-507.06,0.00022986,2]
[311860390,1705476669453,-962.52,0.00022986,2]
[311860391,1705476669462,-500.0,0.00022986,2]
[311860392,1705476669472,-695.31,0.00022986,2]
[311860393,1705476669482,-1996.0,0.00022986,2]
[311860394,1705476669492,-1157.64,0.00022986,2]
[311860395,1705476669501,-500.0,0.00022986,2]
[311860396,1705476669511,-500.0,0.00022986,2]
[311860397,1705476669521,-500.0,0.00022986,2]
[311860398,1705476669530,-1340.59,0.00022986,2]
[311860399,1705476669540,-500.0,0.00022986,2]
[311860400,1705476669550,-955.75,0.00022986,2]
[311860401,1705476669560,-742.93,0.00022986,2]
[311860402,1705476669569,-1402.47,0.00022986,2]
[311860403,1705476669579,-2064.93,0.00022986,2]
[311860404,1705476669588,-562.43759564,0.00022986,2]
[311860405,1705476669597,-1190.72,0.00022986,2]
[311860406,1705476669607,-961.02,0.00022986,2]
[311860407,1705476669617,-500.0,0.00022986,2]
[311860408,1705476669629,-1952.44,0.00022986,2]
[311860409,1705476669638,-500.0,0.00022986,2]
[311860410,1705476669648,-915.46,0.00022986,2]
[311860411,1705476669658,-2814.84,0.00022986,2]
[311860412,1705476669667,-1127.35,0.00022986,2]
[311860413,1705476669678,-500.0,0.00022986,2]
[311860414,1705476669687,-3808.94,0.00022986,2]
[311860415,1705476669697,-500.0,0.00022986,2]
[311860416,1705476669707,-961.12,0.00022986,2]
[311860417,1705476669716,-6462.4,0.00022986,2]
[311860418,1705476669726,-1348.17,0.00022986,2]
[311860419,1705476669736,-1329.87,0.00022986,2]
[311860420,1705476669745,-500.0,0.00022986,2]
[311860421,1705476669756,-504.74417702,0.00022986,2]
[311860422,1705476669765,-500.0,0.00022986,2]
[311860423,1705476669775,-972.05,0.00022986,2]
[311860424,1705476669786,-575.95,0.00022986,2]
[311860425,1705476669795,-1454.92,0.00022986,2]
[311860426,1705476669805,-934.72,0.00022986,2]
[311860427,1705476669815,-500.0,0.00022986,2]
[311860428,1705476669825,-1757.25,0.00022986,2]
[311860429,1705476669834,-1757.25,0.00022986,2]
[311860430,1705476669844,-1757.25,0.00022986,2]
[311860431,1705476669853,-1757.25,0.00022986,2]
[311860432,1705476669863,-1757.25,0.00022986,2]
[311860433,1705476669873,-1757.25,0.00022986,2]
[311860434,1705476669883,-1757.25,0.00022986,2]
[311860435,1705476669893,-1757.25,0.00022986,2]
[311860436,1705476669903,-1757.25,0.00022986,2]
[311860437,1705476669912,-1757.25,0.00022986,2]
[311860438,1705476669922,-1757.25,0.00022986,2]
[311860439,1705476669931,-1757.25,0.00022986,2]
[311860440,1705476669941,-1757.25,0.00022986,2]
[311860441,1705476669950,-1757.25,0.00022986,2]
[311860442,1705476669960,-1757.25,0.00022986,2]
[311860443,1705476669969,-1757.25,0.00022986,2]
[311860444,1705476669978,-1757.25,0.00022986,2]
[311860445,1705476669988,-1757.25,0.00022986,2]
[311860446,1705476669998,-1757.25,0.00022986,2]
[311860447,1705476670007,-1757.25,0.00022986,2]
[311860448,1705476670017,-1757.25,0.00022986,2]
[311860449,1705476670026,-1757.25,0.00022986,2]
[311860450,1705476670035,-1757.25,0.00022986,2]
[311860451,1705476670045,-1757.30999726,0.00022986,2]
[311860452,1705476670054,-500.0,0.00022986,2]
[311860453,1705476670064,-981.21,0.00022986,2]
[311860454,1705476670074,-1279.62,0.00022986,2]
[311860455,1705476670083,-986.71,0.00022986,2]
[311860456,1705476670092,-1378.02,0.00022986,2]
[311860457,1705476670102,-983.17,0.00022986,2]
[311860458,1705476670111,-749.55,0.00022986,2]
[311860459,1705476670121,-500.0,0.00022986,2]
[311860460,1705476670133,-500.0,0.00022986,2]
[311860461,1705476670143,-1392.8,0.00022986,2]
[311860462,1705476670153,-1362.05,0.00022986,2]
[311860463,1705476670162,-616.52,0.00022986,2]
[311860464,1705476670172,-1002.05,0.00022986,2]
[311860465,1705476670182,-2330.49,0.00022986,2]
[311860466,1705476670192,-500.0,0.00022986,2]
[311860467,1705476670202,-1450.51,0.00022987,2]
[311860468,1705476670212,-500.0,0.00022987,2]
[311860469,1705476670222,-500.0,0.00022987,2]
[311860470,1705476670231,-504.21760946,0.00022987,2]
[311860471,1705476670241,-500.0,0.00022987,2]
[311860472,1705476670251,-571.67,0.00022987,2]
[311860473,1705476670260,-500.0,0.00022987,2]
[311860474,1705476670270,-1092.03,0.00022987,2]
[311860475,1705476670280,-500.0,0.00022987,2]
[311860476,1705476670290,-500.0,0.00022987,2]
[311860477,1705476670299,-500.0,0.00022987,2]
[311860478,1705476670309,-500.0,0.00022987,2]
[311860479,1705476670318,-500.0,0.00022987,2]
[311860480,1705476670328,-500.0,0.00022987,2]
[311860481,1705476670338,-502.75788794,0.00022987,2]
[311860482,1705476670347,-500.0,0.00022987,2]
[311860483,1705476670357,-500.0,0.00022987,2]
[311860484,1705476670367,-500.0,0.00022987,2]
[311860485,1705476670377,-500.0,0.00022987,2]
[311860486,1705476670387,-503.32978927,0.00022987,2]
[311860487,1705476670398,-500.0,0.00022987,2]
[311860488,1705476670407,-501.76,0.00022987,2]
[311860489,1705476670417,-1002.05,0.00022987,2]
[311860490,1705476670427,-1002.05,0.00022987,2]
[311860491,1705476670438,-155.75181538,0.00022988,2]
[311860492,1705476670448,-301.48389822,0.00022988,2]
[311860493,1705476670458,-528.75487722,0.00022988,2]
[311860494,1705476670468,-511.89328005,0.00022988,2]
[311860495,1705476670479,-500.0,0.00022988,2]
[311860496,1705476670489,-504.64498933,0.00022988,2]
[311860497,1705476670499,-174.02292783,0.00022988,2]
[311860498,1705476670509,-501.58432659,0.00022988,2]
[311860499,1705476670519,-503.22865434,0.00022988,2]
[311860500,1705476670529,-500.0,0.00022988,2]
[311860501,1705476670540,-500.0,0.00022988,2]
[311860502,1705476670552,-500.0,0.00022988,2]
[311860503,1705476670561,-500.0,0.00022988,2]
[311860504,1705476670571,-500.0,0.00022988,2]
[311860505,1705476670581,-500.0,0.00022988,2]
[311860506,1705476670591,-501.24272568,0.00022988,2]
[311860507,1705476670601,-443.24800839,0.00022988,2]
[311860508,1705476670610,-628.29178127,0.00022988,2]
[311860509,1705476670620,-503.09837652,0.00022988,2]
[311860510,1705476670631,-509.91620346,0.00022988,2]
[311860511,1705476670641,-501.72383994,0.00022988,2]
[311860512,1705476670651,-500.0,0.00022988,2]
[311860513,1705476670661,-306.14203807,0.00022988,2]
[311860514,1705476670671,-500.0,0.00022988,2]
[311860515,1705476670681,-505.33553055,0.00022988,2]
[311860516,1705476670691,-571.0875923,0.00022988,2]
[311860517,1705476670702,-500.0,0.00022988,2]
[311860518,1705476670712,-508.33265582,0.00022988,2]
[311860519,1705476670723,-508.44082923,0.00022988,2]
[311860520,1705476670742,-513.8199266,0.00022988,2]
[311860521,1705476670754,-500.53814031,0.00022988,2]
[311860522,1705476670764,-621.36633356,0.00022988,2]
[311860523,1705476670774,-503.3625945,0.00022988,2]
[311860524,1705476670784,-506.07758629,0.00022988,2]
[311860525,1705476670795,-500.0,0.00022988,2]
[311860526,1705476670806,-502.17155087,0.00022988,20]
[311860527,1705476670817,-503.29014911,0.00022988,2]
[311860528,1705476670827,-500.0,0.00022988,2]
[311860529,1705476670837,-500.0,0.00022988,2]
[311860530,1705476670847,-500.0,0.00022988,2]
[311860531,1705476670858,-506.67328912,0.00022988,2]
[311860532,1705476670868,-500.0,0.00022988,2]
[311860533,1705476670879,-500.0,0.00022988,2]
[311860534,1705476670889,-500.0,0.00022988,2]
[311860535,1705476670899,-503.0447677,0.00022988,2]
[311860536,1705476670908,-651.99,0.00022988,2]
[311860537,1705476670918,-502.14648705,0.00022988,2]
[311860538,1705476670927,-500.0,0.00022988,2]
[311860539,1705476670937,-503.27565768,0.00022988,2]
[311860540,1705476670948,-500.0,0.00022988,2]
[311860541,1705476670958,-856.04,0.00022988,2]
[311860542,1705476670968,-572.83678558,0.00022988,2]
[311860543,1705476670978,-500.0,0.00022988,2]
[311860544,1705476670987,-869.69,0.00022988,2]
[311860545,1705476670997,-506.79069883,0.00022988,2]
[311860546,1705476671007,-500.0,0.00022988,2]
[311860547,1705476671017,-500.0,0.00022988,2]
[311860548,1705476671028,-522.2209201,0.00022988,2]
[311860549,1705476671038,-951.55,0.00022988,2]
[311860550,1705476671048,-500.0,0.00022988,2]
[311860551,1705476671058,-505.71672212,0.00022988,9]
[311860552,1705476671068,-500.0,0.00022988,2]
[311860553,1705476671079,-1108.5,0.00022988,2]
[311860554,1705476671089,-516.79465507,0.00022988,2]
[311860555,1705476671099,-500.0,0.00022988,2]
[311860556,1705476671109,-314.16973091,0.00022988,2]
[311860557,1705476671119,-500.0,0.00022988,2]
[311860558,1705476671131,-500.0,0.00022988,2]
[311860559,1705476671141,-500.0,0.00022988,2]
[311860560,1705476671151,-500.0,0.00022988,2]
[311860561,1705476671160,-908.25,0.00022988,2]
[311860562,1705476671172,-500.0,0.00022988,2]
[311860563,1705476671324,-660.16,0.00022988,2]
[311860564,1705476671333,-500.0,0.00022988,2]
[311860565,1705476671342,-500.0,0.00022988,2]
[311860566,1705476671352,-500.0,0.00022988,2]
[311860567,1705476671362,-500.0,0.00022988,2]
[311860568,1705476671371,-500.0,0.00022988,2]
[311860569,1705476671382,-500.0,0.00022988,2]
[311860570,1705476671392,-500.0,0.00022988,2]
[311860571,1705476671405,-490.49363354,0.00022988,2]
[311860572,1705476671414,-173.33868904,0.00022988,2]
[311860573,1705476671424,-501.32880581,0.00022988,2]
[311860574,1705476671435,-909.11,0.00022988,2]
[311860575,1705476671444,-500.0,0.00022988,2]
[311860576,1705476671453,-500.0,0.00022988,2]
[311860577,1705476671462,-561.99044627,0.00022988,2]
[311860578,1705476671472,-500.0,0.00022988,2]
[311860579,1705476671482,-500.0,0.00022988,2]
[311860580,1705476671492,-500.0,0.00022988,2]
[311860581,1705476671501,-500.0,0.00022988,2]
[311860582,1705476671511,-419.80740707,0.00022988,2]
[311860583,1705476671520,-500.0,0.00022988,2]
[311860584,1705476671529,-500.0,0.00022988,2]
[311860585,1705476671538,-525.5290211,0.00022988,2]
[311860586,1705476671547,-500.0,0.00022988,2]
[311860587,1705476671556,-978.68,0.00022988,2]
[311860588,1705476671566,-500.0,0.00022988,2]
[311860589,1705476671575,-501.69354927,0.00022988,2]
[311860590,1705476671584,-500.0,0.00022988,2]
[311860591,1705476671593,-565.15,0.00022988,2]
[311860592,1705476671602,-838.25,0.00022988,2]
[311860593,1705476671612,-1873.58,0.00022988,2]
[311860594,1705476671621,-500.0,0.00022988,2]
[311860595,1705476671631,-501.36355322,0.00022988,2]
[311860596,1705476671640,-612.35,0.00022988,2]
[311860597,1705476671650,-543.4,0.00022988,2]
[311860598,1705476671659,-235.57496122,0.00022988,2]
[311860599,1705476671668,-510.00551972,0.00022988,2]
[311860600,1705476671678,-191.00227684,0.00022988,2]
[311860601,1705476671687,-500.0,0.00022988,2]
[311860602,1705476671696,-500.0,0.00022988,2]
[311860603,1705476671706,-750.15,0.00022988,2]
[311860604,1705476671715,-513.93702617,0.00022988,2]
[311860605,1705476671724,-500.0,0.00022988,2]
[311860606,1705476671733,-500.0,0.00022988,2]
[311860607,1705476671742,-500.0,0.00022988,2]
[311860608,1705476671751,-702.71,0.00022988,2]
[311860609,1705476671760,-500.0,0.00022988,2]
[311860610,1705476671769,-500.0,0.00022988,2]
[311860611,1705476671778,-434.86149735,0.00022988,2]
[311860612,1705476671787,-500.0,0.00022988,2]
[311860613,1705476671797,-500.0,0.00022988,2]
[311860614,1705476671806,-502.47961968,0.00022988,2]
[311860615,1705476671815,-504.01967277,0.00022988,2]
[311860616,1705476671823,-501.15531771,0.00022988,2]
[311860617,1705476671833,-500.0,0.00022988,2]
[311860618,1705476671843,-500.0,0.00022988,2]
[311860619,1705476671853,-500.0,0.00022988,2]
[311860620,1705476671862,-500.0,0.00022988,2]
[311860621,1705476671871,-500.0,0.00022988,2]
[311860622,1705476671882,-504.40819678,0.00022988,2]
[311860623,1705476671891,-1028.88,0.00022988,2]
[311860624,1705476671900,-500.0,0.00022988,2]
[311860625,1705476671910,-613.84,0.00022988,2]
[311860626,1705476671919,-500.0,0.00022988,2]
[311860627,1705476671928,-506.61401238,0.00022988,2]
[311860628,1705476671937,-500.0,0.00022988,2]
[311860629,1705476671946,-500.0,0.00022988,2]
[311860630,1705476671955,-500.0,0.00022988,2]
[311860631,1705476671964,-500.0,0.00022988,2]
[311860632,1705476671974,-500.0,0.00022988,2]
[311860633,1705476671983,-500.0,0.00022988,2]
[311860634,1705476671993,-615.5840366,0.00022988,2]
[311860635,1705476672002,-528.10555098,0.00022988,2]
[311860636,1705476672011,-629.19,0.00022988,2]
[311860637,1705476672020,-646.55,0.00022988,2]
[311860638,1705476672029,-585.97,0.00022988,2]
[311860639,1705476672039,-844.88,0.00022988,2]
[311860640,1705476672049,-2391.2,0.00022988,2]
[311860641,1705476672059,-500.0,0.00022988,2]
[311860642,1705476672069,-903.32,0.00022988,2]
[311860643,1705476672080,-1835.11,0.00022988,2]
[311860644,1705476672089,-908.46,0.00022988,2]
[311860645,1705476672100,-1433.97,0.00022988,2]
[311860646,1705476672110,-500.0,0.00022988,2]
[311860647,1705476672119,-500.0,0.00022988,2]
[311860648,1705476672129,-572.94,0.00022988,2]
[311860649,1705476672138,-497.62877019,0.00022988,2]
[311860650,1705476672147,-500.0,0.00022988,2]